[Event "Titled Tuesday Blitz September 27 Late 2022"]
[White "Gabrielian, Artur"]
[Black "Sargsyan, Anna M."]
[WhiteFideId "4131002"]
[BlackFideId "13308130"]
[WhiteElo "2467"]
[BlackElo "2271"]
[Result "1-0"]
[Round "09"]
[TimeControl "180+1"]
[Date "2022.09.27"]
[WhiteClock "0:00:13"]
[BlackClock "0:00:04"]

1. e4 {[%clk 0:03:00]}  c6 {[%clk 0:03:00]} 2. d4 {[%clk 0:03:00]}  d5 {[%clk 0:03:01]} 3. e5 {[%clk 0:03:01]}  Bf5 {[%clk 0:03:00]} 4. h4 {[%clk 0:03:01]}  h5 {[%clk 0:03:00]} 5. Bd3 {[%clk 0:03:01]}  Bxd3 {[%clk 0:02:59]} 6. Qxd3 {[%clk 0:03:01]}  e6 {[%clk 0:03:00]} 7. Nf3 {[%clk 0:03:01]}  Qa5+ {[%clk 0:03:01]} 8. Nbd2 {[%clk 0:03:01]}  Qa6 {[%clk 0:03:01]} 9. c4 {[%clk 0:03:01]}  Ne7 {[%clk 0:03:00]} 10. O-O {[%clk 0:03:01]}  Nf5 {[%clk 0:03:01]} 11. b3 {[%clk 0:03:00]}  Be7 {[%clk 0:03:01]} 12. g3 {[%clk 0:03:01]}  O-O {[%clk 0:03:01]} 13. Rd1 {[%clk 0:02:52]}  Nd7 {[%clk 0:03:00]} 14. Nf1 {[%clk 0:02:51]}  Rfe8 {[%clk 0:02:54]} 15. Ne3 {[%clk 0:02:50]}  Nxe3 {[%clk 0:02:51]} 16. Bxe3 {[%clk 0:02:47]}  Nb6 {[%clk 0:02:42]} 17. Rac1 {[%clk 0:02:38]}  Rac8 {[%clk 0:02:30]} 18. c5 {[%clk 0:02:14]}  Qxd3 {[%clk 0:02:28]} 19. Rxd3 {[%clk 0:02:14]}  Nd7 {[%clk 0:02:28]} 20. b4 {[%clk 0:02:11]}  a6 {[%clk 0:02:25]} 21. a4 {[%clk 0:02:10]}  Ra8 {[%clk 0:02:24]} 22. Rb3 {[%clk 0:02:10]}  Rec8 {[%clk 0:02:15]} 23. Kg2 {[%clk 0:02:07]}  g6 {[%clk 0:02:13]} 24. Bg5 {[%clk 0:02:07]}  Kf8 {[%clk 0:02:12]} 25. Bxe7+ {[%clk 0:02:05]}  Kxe7 {[%clk 0:02:13]} 26. Ng5 {[%clk 0:01:56]}  Rf8 {[%clk 0:02:00]} 27. Rcc3 {[%clk 0:01:55]}  Rac8 {[%clk 0:01:53]} 28. b5 {[%clk 0:01:54]}  axb5 {[%clk 0:01:53]} 29. axb5 {[%clk 0:01:55]}  Ra8 {[%clk 0:01:50]} 30. Rf3 {[%clk 0:01:52]}  Ra4 {[%clk 0:01:36]} 31. Rf4 {[%clk 0:01:52]}  f5 {[%clk 0:01:18]} 32. exf6+ {[%clk 0:01:47]}  Rxf6 {[%clk 0:01:17]} 33. Re3 {[%clk 0:01:47]}  Rxf4 {[%clk 0:00:56]} 34. Rxe6+ {[%clk 0:01:46]}  Kf8 {[%clk 0:00:51]} 35. gxf4 {[%clk 0:01:46]}  cxb5 {[%clk 0:00:51]} 36. Rd6 {[%clk 0:01:31]}  Ke7 {[%clk 0:00:47]} 37. Re6+ {[%clk 0:01:25]}  Kf8 {[%clk 0:00:47]} 38. Rxg6 {[%clk 0:01:25]}  b4 {[%clk 0:00:46]} 39. Rd6 {[%clk 0:01:22]}  Ke7 {[%clk 0:00:23]} 40. f5 {[%clk 0:01:20]}  b3 {[%clk 0:00:22]} 41. Re6+ {[%clk 0:01:20]}  Kd8 {[%clk 0:00:20]} 42. Re2 {[%clk 0:01:07]}  Kc8 {[%clk 0:00:17]} 43. Re8+ {[%clk 0:00:35]}  Kc7 {[%clk 0:00:17]} 44. Ne6+ {[%clk 0:00:36]}  Kc6 {[%clk 0:00:17]} 45. Rc8+ {[%clk 0:00:36]}  Kb5 {[%clk 0:00:18]} 46. Rb8 {[%clk 0:00:37]}  Kc4 {[%clk 0:00:16]} 47. Rxb7 {[%clk 0:00:35]}  Rb4 {[%clk 0:00:17]} 48. Rxb4+ {[%clk 0:00:29]}  Kxb4 {[%clk 0:00:17]} 49. c6 {[%clk 0:00:30]}  Nb6 {[%clk 0:00:11]} 50. f6 {[%clk 0:00:30]}  b2 {[%clk 0:00:11]} 51. f7 {[%clk 0:00:31]}  b1=Q {[%clk 0:00:12]} 52. f8=Q+ {[%clk 0:00:31]}  Kb5 {[%clk 0:00:11]} 53. Qc5+ {[%clk 0:00:31]}  Ka6 {[%clk 0:00:11]} 54. Ng5 {[%clk 0:00:22]}  Qf5 {[%clk 0:00:08]} 55. f3 {[%clk 0:00:15]}  Qd3 {[%clk 0:00:07]} 56. Kf2 {[%clk 0:00:13]}  Qd2+ {[%clk 0:00:07]} 57. Kg3 {[%clk 0:00:14]}  Qe1+ {[%clk 0:00:06]} 58. Kf4 {[%clk 0:00:14]}  Qxh4+ {[%clk 0:00:05]} 59. Kf5 {[%clk 0:00:15]}  Qe1 {[%clk 0:00:03]} 60. c7 {[%clk 0:00:15]}  Qb1+ {[%clk 0:00:03]} 61. Kf4 {[%clk 0:00:14]}  Qg6 {[%clk 0:00:01]} 62. c8=Q+ {[%clk 0:00:13]}  Nxc8 {[%clk 0:00:02]} 63. Qxc8+ {[%clk 0:00:13]}  Kb5 {[%clk 0:00:03]} 64. Qc5+ {[%clk 0:00:12]}  Ka6 {[%clk 0:00:04]} 65. Qxd5 {[%clk 0:00:13]}  h4 {[%clk 0:00:03]} 66. Qe6+ {[%clk 0:00:13]}  Qxe6 {[%clk 0:00:04]} 67. Nxe6 {[%clk 0:00:13]} 1-0


[Site "https://www.chess.com"]

[Event "Titled Tuesday Blitz September 27 Late 2022"]
[White "Gunduz, Umut Erdem"]
[Black "Kravtsiv, Martyn"]
[WhiteFideId "6381383"]
[BlackFideId "14113147"]
[WhiteElo "2029"]
[BlackElo "2694"]
[Result "0-1"]
[Round "09"]
[TimeControl "180+1"]
[Date "2022.09.27"]
[WhiteClock "0:00:05"]
[BlackClock "0:00:42"]

1. e4 {[%clk 0:02:19]}  e5 {[%clk 0:02:59]} 2. Nf3 {[%clk 0:02:19]}  Nc6 {[%clk 0:02:59]} 3. Bb5 {[%clk 0:02:20]}  a6 {[%clk 0:02:59]} 4. Ba4 {[%clk 0:02:20]}  Nf6 {[%clk 0:02:59]} 5. O-O {[%clk 0:02:20]}  Be7 {[%clk 0:02:59]} 6. Re1 {[%clk 0:02:21]}  b5 {[%clk 0:02:59]} 7. Bb3 {[%clk 0:02:21]}  O-O {[%clk 0:02:59]} 8. h3 {[%clk 0:02:22]}  Bb7 {[%clk 0:02:57]} 9. c3 {[%clk 0:02:22]}  d5 {[%clk 0:02:50]} 10. exd5 {[%clk 0:02:15]}  Nxd5 {[%clk 0:02:51]} 11. d3 {[%clk 0:02:16]}  Bf6 {[%clk 0:02:46]} 12. Bc2 {[%clk 0:01:59]}  g6 {[%clk 0:02:45]} 13. Nbd2 {[%clk 0:01:58]}  Bg7 {[%clk 0:02:45]} 14. Ne4 {[%clk 0:01:50]}  Qe7 {[%clk 0:02:42]} 15. Bg5 {[%clk 0:01:49]}  f6 {[%clk 0:02:41]} 16. Bb3 {[%clk 0:01:48]}  Na5 {[%clk 0:02:40]} 17. Bh4 {[%clk 0:01:33]}  Nxb3 {[%clk 0:02:38]} 18. Qxb3 {[%clk 0:01:32]}  Qf7 {[%clk 0:02:37]} 19. Bg3 {[%clk 0:01:28]}  Rad8 {[%clk 0:02:23]} 20. Nc5 {[%clk 0:01:28]}  Bc8 {[%clk 0:02:22]} 21. a4 {[%clk 0:01:22]}  Nb6 {[%clk 0:02:15]} 22. Qxf7+ {[%clk 0:01:17]}  Rxf7 {[%clk 0:02:16]} 23. axb5 {[%clk 0:01:17]}  axb5 {[%clk 0:02:16]} 24. d4 {[%clk 0:01:15]}  Bf8 {[%clk 0:02:15]} 25. Na6 {[%clk 0:01:03]}  Na4 {[%clk 0:01:56]} 26. b3 {[%clk 0:00:56]}  Nxc3 {[%clk 0:01:43]} 27. dxe5 {[%clk 0:00:57]}  fxe5 {[%clk 0:01:41]} 28. Nxe5 {[%clk 0:00:50]}  Rg7 {[%clk 0:01:35]} 29. Nc6 {[%clk 0:00:49]}  Rdd7 {[%clk 0:01:34]} 30. Be5 {[%clk 0:00:47]}  Nd5 {[%clk 0:01:26]} 31. Bxg7 {[%clk 0:00:46]}  Kxg7 {[%clk 0:01:27]} 32. Nab8 {[%clk 0:00:26]}  Rd6 {[%clk 0:01:22]} 33. Rad1 {[%clk 0:00:24]}  Bb7 {[%clk 0:01:19]} 34. Nd4 {[%clk 0:00:24]}  Nc3 {[%clk 0:01:15]} 35. Rd3 {[%clk 0:00:16]}  Ne4 {[%clk 0:01:14]} 36. Nd7 {[%clk 0:00:13]}  c5 {[%clk 0:01:09]} 37. Nf5+ {[%clk 0:00:05]}  gxf5 {[%clk 0:01:08]} 38. Rxd6 {[%clk 0:00:06]}  Bxd6 {[%clk 0:01:08]} 39. f3 {[%clk 0:00:06]}  Nd2 {[%clk 0:00:58]} 40. Rd1 {[%clk 0:00:06]}  Bf4 {[%clk 0:00:54]} 41. Nxc5 {[%clk 0:00:06]}  Be3+ {[%clk 0:00:54]} 42. Kh1 {[%clk 0:00:07]}  Bd5 {[%clk 0:00:54]} 43. b4 {[%clk 0:00:04]}  Bc4 {[%clk 0:00:54]} 44. Nb7 {[%clk 0:00:03]}  Kf6 {[%clk 0:00:52]} 45. Re1 {[%clk 0:00:03]}  f4 {[%clk 0:00:52]} 46. Nd6 {[%clk 0:00:03]}  Bd3 {[%clk 0:00:52]} 47. Nc8 {[%clk 0:00:02]}  Ke5 {[%clk 0:00:49]} 48. Rc1 {[%clk 0:00:02]}  Kd4 {[%clk 0:00:48]} 49. Rc7 {[%clk 0:00:03]}  Nc4 {[%clk 0:00:45]} 50. Rd7+ {[%clk 0:00:03]}  Kc3 {[%clk 0:00:45]} 51. Ne7 {[%clk 0:00:04]}  Nb6 {[%clk 0:00:42]} 52. Nd5+ {[%clk 0:00:04]}  Nxd5 {[%clk 0:00:42]} 53. Rxd5 {[%clk 0:00:05]} 0-1


[Site "https://www.chess.com"]

[Event "Titled Tuesday Blitz September 27 Late 2022"]
[White "Janaszak, Dawid"]
[Black "Goltsev, Dmitry"]
[WhiteFideId "1119206"]
[BlackFideId "24176710"]
[WhiteElo "2165"]
[BlackElo "2257"]
[Result "1-0"]
[Round "09"]
[TimeControl "180+1"]
[Date "2022.09.28"]
[WhiteClock "0:00:46"]
[BlackClock "0:00:54"]

1. e4 {[%clk 0:03:00]}  e6 {[%clk 0:02:57]} 2. b3 {[%clk 0:02:58]}  d5 {[%clk 0:02:58]} 3. Bb2 {[%clk 0:02:59]}  dxe4 {[%clk 0:02:56]} 4. Nc3 {[%clk 0:02:58]}  Nf6 {[%clk 0:02:56]} 5. Qe2 {[%clk 0:02:59]}  Nc6 {[%clk 0:02:56]} 6. O-O-O {[%clk 0:02:59]}  Nd4 {[%clk 0:02:53]} 7. Qe1 {[%clk 0:02:59]}  Be7 {[%clk 0:02:50]} 8. Nxe4 {[%clk 0:02:56]}  b6 {[%clk 0:02:50]} 9. Nf3 {[%clk 0:02:49]}  Nxf3 {[%clk 0:02:49]} 10. gxf3 {[%clk 0:02:49]}  Bb7 {[%clk 0:02:50]} 11. Rg1 {[%clk 0:02:48]}  O-O {[%clk 0:02:38]} 12. Qe3 {[%clk 0:02:46]}  Kh8 {[%clk 0:02:33]} 13. Rxg7 {[%clk 0:02:28]}  Bxe4 {[%clk 0:02:32]} 14. Qh6 {[%clk 0:01:28]}  Bg6 {[%clk 0:02:29]} 15. Bd3 {[%clk 0:01:23]}  Qxd3 {[%clk 0:01:11]} 16. cxd3 {[%clk 0:01:17]}  Rad8 {[%clk 0:01:11]} 17. Rxh7+ {[%clk 0:01:00]}  Bxh7 {[%clk 0:01:00]} 18. Bxf6+ {[%clk 0:00:58]}  Bxf6 {[%clk 0:01:00]} 19. Qxf6+ {[%clk 0:00:59]}  Kg8 {[%clk 0:01:01]} 20. Rg1+ {[%clk 0:00:56]}  Bg6 {[%clk 0:01:00]} 21. h4 {[%clk 0:00:52]}  Rd5 {[%clk 0:01:00]} 22. Rxg6+ {[%clk 0:00:52]}  fxg6 {[%clk 0:00:57]} 23. Qxe6+ {[%clk 0:00:52]}  Rf7 {[%clk 0:00:57]} 24. Qxd5 {[%clk 0:00:52]}  Kg7 {[%clk 0:00:58]} 25. h5 {[%clk 0:00:50]}  gxh5 {[%clk 0:00:58]} 26. Qxh5 {[%clk 0:00:49]}  a5 {[%clk 0:00:58]} 27. a4 {[%clk 0:00:49]}  c6 {[%clk 0:00:58]} 28. Kd1 {[%clk 0:00:49]}  b5 {[%clk 0:00:55]} 29. axb5 {[%clk 0:00:49]}  cxb5 {[%clk 0:00:55]} 30. Qxb5 {[%clk 0:00:49]}  Kf6 {[%clk 0:00:54]} 31. Qxa5 {[%clk 0:00:48]}  Kg6 {[%clk 0:00:52]} 32. Qe5 {[%clk 0:00:46]}  Kh7 {[%clk 0:00:50]} 33. Qh5+ {[%clk 0:00:44]}  Kg7 {[%clk 0:00:50]} 34. Qxf7+ {[%clk 0:00:45]}  Kh8 {[%clk 0:00:50]} 35. Qe7 {[%clk 0:00:43]}  Kg8 {[%clk 0:00:51]} 36. b4 {[%clk 0:00:43]}  Kh8 {[%clk 0:00:52]} 37. b5 {[%clk 0:00:43]}  Kg8 {[%clk 0:00:53]} 38. b6 {[%clk 0:00:44]}  Kh8 {[%clk 0:00:54]} 39. b7 {[%clk 0:00:45]}  Kg8 {[%clk 0:00:54]} 40. b8=Q# {[%clk 0:00:46]} 1-0


[Site "https://www.chess.com"]

[Event "Titled Tuesday Blitz September 27 Late 2022"]
[White "Lin, Dachey"]
[Black "Barria Zuniga, Daniel"]
[WhiteFideId "2029650"]
[BlackFideId "3400816"]
[WhiteElo "2313"]
[BlackElo "2414"]
[Result "1-0"]
[Round "09"]
[TimeControl "180+1"]
[Date "2022.09.27"]
[WhiteClock "0:01:52"]
[BlackClock "0:00:03"]

1. g4 {[%clk 0:03:00]}  d5 {[%clk 0:02:57]} 2. Bg2 {[%clk 0:03:01]}  e6 {[%clk 0:02:57]} 3. d4 {[%clk 0:03:00]}  c5 {[%clk 0:02:55]} 4. c3 {[%clk 0:03:00]}  Nc6 {[%clk 0:02:55]} 5. Nf3 {[%clk 0:02:59]}  Nf6 {[%clk 0:02:50]} 6. h3 {[%clk 0:02:58]}  Be7 {[%clk 0:02:47]} 7. Bf4 {[%clk 0:02:57]}  O-O {[%clk 0:02:47]} 8. O-O {[%clk 0:02:57]}  b5 {[%clk 0:02:46]} 9. Ne5 {[%clk 0:02:55]}  Nxe5 {[%clk 0:02:41]} 10. dxe5 {[%clk 0:02:54]}  Nd7 {[%clk 0:02:39]} 11. e4 {[%clk 0:02:54]}  Nb6 {[%clk 0:02:34]} 12. exd5 {[%clk 0:02:51]}  Nxd5 {[%clk 0:02:27]} 13. Bg3 {[%clk 0:02:50]}  Bb7 {[%clk 0:02:24]} 14. Nd2 {[%clk 0:02:49]}  Qb6 {[%clk 0:02:21]} 15. Ne4 {[%clk 0:02:47]}  Rad8 {[%clk 0:02:21]} 16. Qe2 {[%clk 0:02:47]}  Rfe8 {[%clk 0:02:09]} 17. Kh2 {[%clk 0:02:46]}  c4 {[%clk 0:02:06]} 18. Rae1 {[%clk 0:02:44]}  b4 {[%clk 0:02:05]} 19. f4 {[%clk 0:02:44]}  bxc3 {[%clk 0:02:04]} 20. bxc3 {[%clk 0:02:45]}  Bc5 {[%clk 0:01:34]} 21. Rb1 {[%clk 0:02:16]}  Qc6 {[%clk 0:01:29]} 22. Rxb7 {[%clk 0:02:14]}  Qxb7 {[%clk 0:01:27]} 23. Nxc5 {[%clk 0:02:15]}  Qb5 {[%clk 0:01:14]} 24. Ne4 {[%clk 0:02:15]}  Qa5 {[%clk 0:01:13]} 25. Qf3 {[%clk 0:01:58]}  Qxa2 {[%clk 0:01:07]} 26. f5 {[%clk 0:01:58]}  exf5 {[%clk 0:00:39]} 27. gxf5 {[%clk 0:01:57]}  Qa6 {[%clk 0:00:29]} 28. e6 {[%clk 0:01:56]}  fxe6 {[%clk 0:00:28]} 29. f6 {[%clk 0:01:57]}  Rf8 {[%clk 0:00:09]} 30. f7+ {[%clk 0:01:55]}  Kh8 {[%clk 0:00:09]} 31. Be5 {[%clk 0:01:56]}  Qb7 {[%clk 0:00:05]} 32. Bxg7+ {[%clk 0:01:51]}  Kxg7 {[%clk 0:00:05]} 33. Qg3+ {[%clk 0:01:52]}  Kh6 {[%clk 0:00:03]} 34. Qg5# {[%clk 0:01:52]} 1-0


[Site "https://www.chess.com"]

[Event "Titled Tuesday Blitz September 27 Late 2022"]
[White "Luxama, Jacques Muller"]
[Black "Garcia Almaguer, Juan Manuel"]
[WhiteFideId "11900113"]
[BlackFideId "5110491"]
[WhiteElo "1931"]
[BlackElo "2153"]
[Result "0-1"]
[Round "09"]
[TimeControl "180+1"]
[Date "2022.09.28"]
[WhiteClock "0:00:02"]
[BlackClock "0:00:11"]

1. e4 {[%clk 0:02:59]}  e5 {[%clk 0:02:51]} 2. Nf3 {[%clk 0:02:58]}  Nc6 {[%clk 0:02:50]} 3. Bb5 {[%clk 0:02:58]}  a6 {[%clk 0:02:50]} 4. Ba4 {[%clk 0:02:58]}  Nf6 {[%clk 0:02:50]} 5. O-O {[%clk 0:02:58]}  Be7 {[%clk 0:02:48]} 6. c3 {[%clk 0:02:58]}  b5 {[%clk 0:02:47]} 7. Bb3 {[%clk 0:02:57]}  O-O {[%clk 0:02:48]} 8. d4 {[%clk 0:02:44]}  Nxe4 {[%clk 0:02:42]} 9. dxe5 {[%clk 0:02:42]}  Nc5 {[%clk 0:02:33]} 10. Bc2 {[%clk 0:02:41]}  d5 {[%clk 0:02:16]} 11. h3 {[%clk 0:02:37]}  Be6 {[%clk 0:02:11]} 12. Re1 {[%clk 0:02:36]}  Qd7 {[%clk 0:02:07]} 13. Nbd2 {[%clk 0:02:35]}  Bf5 {[%clk 0:02:05]} 14. Nf1 {[%clk 0:02:31]}  Bxc2 {[%clk 0:01:58]} 15. Qxc2 {[%clk 0:02:32]}  Rfe8 {[%clk 0:01:58]} 16. Bf4 {[%clk 0:02:25]}  Rad8 {[%clk 0:01:57]} 17. Rad1 {[%clk 0:02:25]}  Qe6 {[%clk 0:01:48]} 18. Nd4 {[%clk 0:01:56]}  Nxd4 {[%clk 0:01:41]} 19. cxd4 {[%clk 0:01:57]}  Na4 {[%clk 0:01:36]} 20. b3 {[%clk 0:01:41]}  Nb6 {[%clk 0:01:33]} 21. Qxc7 {[%clk 0:01:36]}  Rc8 {[%clk 0:01:29]} 22. Qb7 {[%clk 0:01:36]}  Bb4 {[%clk 0:01:26]} 23. Re2 {[%clk 0:01:29]}  a5 {[%clk 0:01:24]} 24. Qa6 {[%clk 0:01:20]}  Qc6 {[%clk 0:01:23]} 25. Rc1 {[%clk 0:01:15]}  Qg6 {[%clk 0:00:46]} 26. Rxc8 {[%clk 0:01:06]}  Rxc8 {[%clk 0:00:47]} 27. Qxb5 {[%clk 0:01:05]}  h6 {[%clk 0:00:45]} 28. Ne3 {[%clk 0:00:54]}  Qe6 {[%clk 0:00:44]} 29. Qd3 {[%clk 0:00:46]}  g5 {[%clk 0:00:43]} 30. Bg3 {[%clk 0:00:46]}  Rc3 {[%clk 0:00:43]} 31. Qf5 {[%clk 0:00:40]}  a4 {[%clk 0:00:38]} 32. Qxe6 {[%clk 0:00:40]}  fxe6 {[%clk 0:00:38]} 33. Ng4 {[%clk 0:00:39]}  Kg7 {[%clk 0:00:37]} 34. bxa4 {[%clk 0:00:34]}  Nxa4 {[%clk 0:00:38]} 35. Nf6 {[%clk 0:00:30]}  Rc1+ {[%clk 0:00:30]} 36. Kh2 {[%clk 0:00:29]}  Bc3 {[%clk 0:00:30]} 37. Ne8+ {[%clk 0:00:15]}  Kf7 {[%clk 0:00:28]} 38. Nd6+ {[%clk 0:00:16]}  Ke7 {[%clk 0:00:26]} 39. Nb5 {[%clk 0:00:16]}  Ba1 {[%clk 0:00:26]} 40. h4 {[%clk 0:00:15]}  Rb1 {[%clk 0:00:26]} 41. Nd6 {[%clk 0:00:09]}  Bxd4 {[%clk 0:00:25]} 42. hxg5 {[%clk 0:00:10]}  hxg5 {[%clk 0:00:26]} 43. Rc2 {[%clk 0:00:08]}  Bc5 {[%clk 0:00:25]} 44. Nc8+ {[%clk 0:00:06]}  Kd7 {[%clk 0:00:23]} 45. Nd6 {[%clk 0:00:07]}  Rb2 {[%clk 0:00:19]} 46. Rxb2 {[%clk 0:00:06]}  Nxb2 {[%clk 0:00:19]} 47. Nf7 {[%clk 0:00:06]}  Be7 {[%clk 0:00:19]} 48. Kh3 {[%clk 0:00:06]}  Nd3 {[%clk 0:00:20]} 49. Kg4 {[%clk 0:00:05]}  Nb4 {[%clk 0:00:18]} 50. Nxg5 {[%clk 0:00:05]}  Bxg5 {[%clk 0:00:16]} 51. Kxg5 {[%clk 0:00:06]}  d4 {[%clk 0:00:17]} 52. Bf4 {[%clk 0:00:06]}  Kc6 {[%clk 0:00:17]} 53. g4 {[%clk 0:00:05]}  Nxa2 {[%clk 0:00:17]} 54. Kf6 {[%clk 0:00:05]}  Kd5 {[%clk 0:00:17]} 55. g5 {[%clk 0:00:06]}  Nc3 {[%clk 0:00:15]} 56. g6 {[%clk 0:00:06]}  Ne2 {[%clk 0:00:16]} 57. Bd2 {[%clk 0:00:05]}  Nc3 {[%clk 0:00:14]} 58. g7 {[%clk 0:00:05]}  Ne4+ {[%clk 0:00:15]} 59. Ke7 {[%clk 0:00:05]}  Nxd2 {[%clk 0:00:16]} 60. g8=Q {[%clk 0:00:05]}  Nc4 {[%clk 0:00:16]} 61. Qd8+ {[%clk 0:00:05]}  Ke4 {[%clk 0:00:16]} 62. Kxe6 {[%clk 0:00:04]}  Kd3 {[%clk 0:00:10]} 63. Qd5 {[%clk 0:00:04]}  Kc3 {[%clk 0:00:11]} 64. Kf6 {[%clk 0:00:03]}  d3 {[%clk 0:00:11]} 65. e6 {[%clk 0:00:03]}  Nb6 {[%clk 0:00:10]} 66. Qc5+ {[%clk 0:00:03]}  Nc4 {[%clk 0:00:11]} 67. e7 {[%clk 0:00:02]}  d2 {[%clk 0:00:11]} 0-1


[Site "https://www.chess.com"]

[Event "Titled Tuesday Blitz September 27 Late 2022"]
[White "Martinez Alcantara, Jose Eduardo"]
[Black "Jobava, Baadur"]
[WhiteFideId "3805662"]
[BlackFideId "13601520"]
[WhiteElo "2703"]
[BlackElo "2582"]
[Result "0-1"]
[Round "09"]
[TimeControl "180+1"]
[Date "2022.09.27"]
[WhiteClock "0:00:05"]
[BlackClock "0:00:22"]

1. e4 {[%clk 0:03:00]}  e6 {[%clk 0:02:57]} 2. d4 {[%clk 0:03:00]}  d5 {[%clk 0:02:58]} 3. exd5 {[%clk 0:03:01]}  exd5 {[%clk 0:02:58]} 4. Nf3 {[%clk 0:03:02]}  Nf6 {[%clk 0:02:57]} 5. Bd3 {[%clk 0:03:01]}  Bd6 {[%clk 0:02:57]} 6. h3 {[%clk 0:03:01]}  O-O {[%clk 0:02:56]} 7. O-O {[%clk 0:03:02]}  Nc6 {[%clk 0:02:56]} 8. c3 {[%clk 0:02:56]}  h6 {[%clk 0:02:56]} 9. Nbd2 {[%clk 0:02:51]}  Re8 {[%clk 0:02:55]} 10. Re1 {[%clk 0:02:51]}  Rxe1+ {[%clk 0:02:55]} 11. Qxe1 {[%clk 0:02:52]}  Ne7 {[%clk 0:02:55]} 12. Ne5 {[%clk 0:02:51]}  Bf5 {[%clk 0:02:55]} 13. Bf1 {[%clk 0:02:32]}  c6 {[%clk 0:02:34]} 14. Ndf3 {[%clk 0:02:32]}  Qc7 {[%clk 0:02:34]} 15. Be3 {[%clk 0:02:25]}  Re8 {[%clk 0:02:33]} 16. Rc1 {[%clk 0:02:25]}  Ng6 {[%clk 0:02:33]} 17. Qd1 {[%clk 0:02:16]}  Ne4 {[%clk 0:02:26]} 18. c4 {[%clk 0:02:10]}  dxc4 {[%clk 0:02:15]} 19. Nxc4 {[%clk 0:02:01]}  Bf4 {[%clk 0:02:15]} 20. Qb3 {[%clk 0:01:59]}  Be6 {[%clk 0:02:06]} 21. Qa3 {[%clk 0:01:59]}  Bxc4 {[%clk 0:02:01]} 22. Bxc4 {[%clk 0:02:00]}  Nxf2 {[%clk 0:01:59]} 23. Re1 {[%clk 0:01:44]}  Ne4 {[%clk 0:01:36]} 24. Bd3 {[%clk 0:01:29]}  Ng5 {[%clk 0:01:28]} 25. Bf2 {[%clk 0:01:01]}  Nxf3+ {[%clk 0:01:26]} 26. gxf3 {[%clk 0:01:02]}  Rxe1+ {[%clk 0:01:23]} 27. Bxe1 {[%clk 0:01:03]}  Be3+ {[%clk 0:01:24]} 28. Kf1 {[%clk 0:01:03]}  Bxd4 {[%clk 0:00:57]} 29. Bxg6 {[%clk 0:00:49]}  fxg6 {[%clk 0:00:58]} 30. Qd3 {[%clk 0:00:46]}  Qd7 {[%clk 0:00:50]} 31. Kg2 {[%clk 0:00:40]}  Kh7 {[%clk 0:00:49]} 32. b4 {[%clk 0:00:29]}  Qd5 {[%clk 0:00:48]} 33. a4 {[%clk 0:00:30]}  Bf6 {[%clk 0:00:45]} 34. Qe2 {[%clk 0:00:26]}  a6 {[%clk 0:00:45]} 35. a5 {[%clk 0:00:26]}  Qg5+ {[%clk 0:00:42]} 36. Kf1 {[%clk 0:00:26]}  Bd4 {[%clk 0:00:41]} 37. Qe4 {[%clk 0:00:24]}  Qe3 {[%clk 0:00:37]} 38. h4 {[%clk 0:00:10]}  h5 {[%clk 0:00:35]} 39. Kg2 {[%clk 0:00:07]}  Qg1+ {[%clk 0:00:29]} 40. Kh3 {[%clk 0:00:07]}  Bf6 {[%clk 0:00:28]} 41. Bg3 {[%clk 0:00:04]}  Qh1+ {[%clk 0:00:25]} 42. Bh2 {[%clk 0:00:04]}  Qf1+ {[%clk 0:00:26]} 43. Kg3 {[%clk 0:00:05]}  Bc3 {[%clk 0:00:22]} 0-1


[Site "https://www.chess.com"]

[Event "Titled Tuesday Blitz September 27 Late 2022"]
[White "Matinian, Nikita"]
[Black "Dounis, Alexandros"]
[WhiteFideId "24129100"]
[BlackFideId "4213238"]
[WhiteElo "2422"]
[BlackElo "2204"]
[Result "0-1"]
[Round "09"]
[TimeControl "180+1"]
[Date "2022.09.27"]
[WhiteClock "0:00:12"]
[BlackClock "0:00:21"]

1. e4 {[%clk 0:02:59]}  e5 {[%clk 0:02:59]} 2. Nf3 {[%clk 0:02:58]}  Nc6 {[%clk 0:03:00]} 3. Bb5 {[%clk 0:02:59]}  a6 {[%clk 0:02:58]} 4. Ba4 {[%clk 0:02:59]}  g6 {[%clk 0:02:57]} 5. c3 {[%clk 0:02:57]}  Bg7 {[%clk 0:02:57]} 6. d4 {[%clk 0:02:57]}  b5 {[%clk 0:02:56]} 7. Bb3 {[%clk 0:02:56]}  exd4 {[%clk 0:02:56]} 8. cxd4 {[%clk 0:02:56]}  Nge7 {[%clk 0:02:56]} 9. d5 {[%clk 0:02:52]}  Na5 {[%clk 0:02:55]} 10. Bd2 {[%clk 0:02:53]}  Nxb3 {[%clk 0:02:52]} 11. Qxb3 {[%clk 0:02:53]}  d6 {[%clk 0:02:52]} 12. O-O {[%clk 0:02:52]}  O-O {[%clk 0:02:52]} 13. Bc3 {[%clk 0:02:52]}  f6 {[%clk 0:02:51]} 14. Nd4 {[%clk 0:02:46]}  Kh8 {[%clk 0:02:47]} 15. Nd2 {[%clk 0:02:45]}  Qe8 {[%clk 0:02:38]} 16. Rfe1 {[%clk 0:02:45]}  c5 {[%clk 0:02:35]} 17. dxc6 {[%clk 0:02:42]}  Nxc6 {[%clk 0:02:35]} 18. Nxc6 {[%clk 0:02:38]}  Qxc6 {[%clk 0:02:35]} 19. Rac1 {[%clk 0:02:39]}  Qd7 {[%clk 0:02:31]} 20. Nf3 {[%clk 0:02:36]}  Bb7 {[%clk 0:02:30]} 21. Rcd1 {[%clk 0:02:27]}  Rae8 {[%clk 0:02:26]} 22. Qc2 {[%clk 0:02:22]}  Qe6 {[%clk 0:02:24]} 23. Nd4 {[%clk 0:02:21]}  Qxa2 {[%clk 0:02:21]} 24. h4 {[%clk 0:02:06]}  Qc4 {[%clk 0:02:18]} 25. b3 {[%clk 0:01:49]}  Qc5 {[%clk 0:02:14]} 26. b4 {[%clk 0:01:31]}  Qc4 {[%clk 0:02:14]} 27. h5 {[%clk 0:01:23]}  gxh5 {[%clk 0:01:30]} 28. f3 {[%clk 0:01:23]}  Rc8 {[%clk 0:01:22]} 29. Re3 {[%clk 0:01:22]}  Bh6 {[%clk 0:01:07]} 30. Red3 {[%clk 0:01:19]}  Bf4 {[%clk 0:01:06]} 31. Qb2 {[%clk 0:01:04]}  Be5 {[%clk 0:01:06]} 32. Ne2 {[%clk 0:00:59]}  h4 {[%clk 0:00:57]} 33. Bxe5 {[%clk 0:00:59]}  dxe5 {[%clk 0:00:57]} 34. Qd2 {[%clk 0:00:45]}  h3 {[%clk 0:00:44]} 35. Qh6 {[%clk 0:00:40]}  Qg8 {[%clk 0:00:29]} 36. Qxh3 {[%clk 0:00:38]}  Rc2 {[%clk 0:00:28]} 37. Ng3 {[%clk 0:00:38]}  Bc8 {[%clk 0:00:27]} 38. Qh4 {[%clk 0:00:34]}  Qg5 {[%clk 0:00:26]} 39. Qxg5 {[%clk 0:00:34]}  fxg5 {[%clk 0:00:27]} 40. Nh5 {[%clk 0:00:32]}  g4 {[%clk 0:00:25]} 41. Rd8 {[%clk 0:00:27]}  Kg8 {[%clk 0:00:23]} 42. Nf6+ {[%clk 0:00:27]}  Kf7 {[%clk 0:00:24]} 43. Rxf8+ {[%clk 0:00:27]}  Kxf8 {[%clk 0:00:23]} 44. Nxh7+ {[%clk 0:00:28]}  Kg7 {[%clk 0:00:24]} 45. Ng5 {[%clk 0:00:27]}  Kg6 {[%clk 0:00:22]} 46. f4 {[%clk 0:00:19]}  exf4 {[%clk 0:00:22]} 47. Rd5 {[%clk 0:00:20]}  g3 {[%clk 0:00:20]} 48. Kf1 {[%clk 0:00:19]}  Bg4 {[%clk 0:00:20]} 49. Nf3 {[%clk 0:00:12]}  Bxf3 {[%clk 0:00:20]} 50. gxf3 {[%clk 0:00:13]}  Rf2+ {[%clk 0:00:20]} 51. Kg1 {[%clk 0:00:13]}  Rxf3 {[%clk 0:00:20]} 52. Rd6+ {[%clk 0:00:12]}  Kg5 {[%clk 0:00:21]} 53. Rxa6 {[%clk 0:00:12]}  Re3 {[%clk 0:00:21]} 0-1


[Site "https://www.chess.com"]